Workbook

Sheet Start Instructions
C3: INSITE'S SITE AND COMMUNITY CLIENT READINESS PROGRAM
C4: InSite's Site Selection Data Template to Compile Site Specs
C5: Stand-Alone Site and/or Industrial Park Site(s): Referenced as "Site" in Document
C6: LEDO Input Data Template
C7: © 2022 InSite LLC: Confidential and Proprietary Property of InSite, LLC. The data template will remain in its original condition (formatting, spelling, etc.) as submitted to InSite.
C8: Input Name of Stand-Alone Site or Industrial Park Submission | D8: Fort Union Industrial Park
C9: Is this Site Submission..... | D9: An Industrial Park Site
C10: Largest, contiguous, developable acreage (CDA) of site submission. See "EX" worksheet tabs. | D10: 460
C11: Submission street/physical address | D11: 3574 N. Garner Lake Rd
C12: city | D12: Gillette
C13: county | D13: Campbell
C14: state | D14: WY
C15: zip code | D15: 82716
C16: GPS Coordinates | D16: 44.354032988369234, -105.4208611010569
C17: **LEDO MUST DO FIRST** | D17: INPUT THE STAND-ALONE SITE OR INDUSTRIAL PARK NAME, SUBMISSION STREET PHYSICAL ADDRESS, CITY, COUNTY, STATE, ZIP IN THE ABOVE FIRST, BEFORE FORWARDING ANY OTHER TABS. IT WILL POPULATE FOR THE REST OF THE WORKSHEET TABS/DOCUMENT. This way everyone will have the identical site information.
C18: Do Not | D18: Leave any input (white) cells blank.
C19: Responses | D19: Such as "N/A, see attachment, or see above" are not considered answers.
C20: **Underlined Text | D20: Is a hyperlink to the example format that must be used for submission.
C21: Answer | D21: Concisely. Input answers in white cells. Only use gray cells for comments.
C22: Utilize | D22: All drop-downs where available. Do not manipulate the document.
C23: Numbers | D23: Are preferable to words. Please use numbers at the template's request.
C24: When Entering | D24: Numerical values, do not include modifiers such as sq.ft., miles, inches, etc. Use comment column for modifiers.
C25: Utilities | D25: All cells must be answered. PARTNER WITH YOUR UTILITY PROVIDERS!
C26: **LEDO MUST** | D26: Develop and Provide a Stand-Alone Site or Industrial Park Boundary Base Map for Each Utility Provider to Show Service to the Boundaries for Consistency. Use this base map for all other "map-related" requests. Then use to develop one map showing all utilities to the site/park boundaries.
C27: **MUST Use This Format for Saving Each File: Filename Example** | D27: Naming the file is very important: Use this format guide (abbreviate to IP, BP, etc.): WBC | InSite | Local Community Name | Current Date (change per revision) | Site Name. Example: WBC InSite Greer (03.24.22) Patriot IP.
C28: Do Not | D28: Manipulate, unlock, unprotect this document. Do not PDF for submission. Return in exact Excel format.
C29: Worksheets | D29: Make note that there are multiple worksheet tabs within this document. These sections are to be sent to the respective local response team member for completion.
C30: Errors | D30: Please check the spelling of the document before returning and double check for errors. Accuracy and correctness are paramount.
C31: Email To Copy | D31: Tonya Crist at tcrist@insiteconsultinggroup.com. Rob Cornwell at rcornwell@insiteconsultinggroup.com.
C32: Responses Due | D32: See Email Instructions.
C33: Hard Copies | D33: Are not requested at this time.
C35: InSite Example Industrial Park Map and CDAs (2023) | D35: See "EX" Worksheet Tabs.
C36: InSite Example Stand-Alone Site CDA Map (2023) One Site | D36: See "EX" Worksheet Tabs.

Sheet Macros (hidden)
B2: Class I | D2: Yes
B3: Class II | D3: No
B4: Class I and Class II | D4: Not Zoned Industrial
B5: Yes
B6: No | D6: Yes
B7: Partial | D7: No
D8: Zoned Industrial
F9: Submitted
D10: Yes | F10: Did Not Submit
B11: Yes | D11: No | F11: No Study Completed
B12: No | Must Provide | D12: Must Provide Comments
B14: Yes | F14: Yes
B15: No | F15: No
F16: There are no mineral rights associated with this property
B17: Single Feed - Single Substation | D17: Single Feed - Single Substation
B18: Dual Feed - Single Substation | D18: Dual Feed - Single Substation
B19: Dual Feed - Dual Substations | D19: Dual Feed - Dual Substations
B20: Dual Feed - Fully Redundant | D20: Dual Feed - Fully Redundant | F20: Submitted
B21: Provided | F21: Did Not Submit
B22: Do Not Have, But Will Obtain
F23: Submitted
F24: Did Not Submit
B25: Yes | Attainment | D25: Yes | Attainment | F25: Do Not Have
B26: No | Nonattainment | D26: No | Nonattainment
B28: Provided as Separate Attachment
B29: - | D29: Provided | F29: Provided
B30: Not Provided | Will Provide | D30: Not Provided | F30: Not Provided
D31: No Option Agreement | F31: No Marketing Agreement
F33: Unwilling to Record Covenants
D34: Yes | F34: Record New
B35: OHSE | D35: No | F35: Amend Existing Covenants
B36: 1CBUS | D36: No Mineral Rights
B37: DDC
B38: NEO
B39: REDI | D39: Yes | F39: Yes
B40: RGP | D40: No | F40: No
D41: Not Rail-Served | F41: No Rail Spur Conceptual
B42: Yes
B43: No | Underway | Put completion date in comments
B44: No | Approved by leadership but no action taken | Explain your approach to get completed in comments | D44: Yes
B45: No approval, no budget | Explain your approach to get completed in comments | D45: No
B46: Never been addressed with leadership | Explain why not in comments | D46: No USACE AJD Letter
B48: Provided with this submission | D48: Yes
B49: Will get and send ASAP | D49: No
B50: Not required due to phase I | D50: No SHPO Letter
B53: Provided | D53: Yes
B54: Do Not Have One | D54: No
B55: In Progress | D55: No USFWS Letter
B58: Provided
B59: Do Not Have, But Will Obtain if Necessary
B60: Do Not Have
B64: Copy provided with this submission
B65: Will get a copy and send ASAP
B66: Do not control with an option
B69: Copy provided with this submission
B70: Will get a copy and send ASAP
B71: Do not have a marketing agreement
B74: Copy provided with this submission
B75: Will get a copy and send ASAP
B76: Do not have covenants
B79: Copy provided with this submission
B80: Will get a copy and send ASAP
B81: Do not have conceptual / masterplan
B84: Copy provided with this submission
B85: Will get a copy and send ASAP
B86: Not zoned industrial
B89: Provided with this submission
B90: Will get and send ASAP
B92: Volunteer | D92: Volunteer
B93: Full-time | D93: Full-time
B95: Submitted
B96: Not submitted but will send ASAP
B99: Revision | Updated Submission from Wave I
B100: New Submission
B103: Yes
B104: No
B105: Not in park
B107: Yes
B108: No
B109: Partial
B111: Yes
B112: No
B115: Yes
B116: No
B117: Study Not Required
B119: Yes
B120: No
B121: Community Owns Property
B124: Yes | D124: Yes
B125: No | D125: No
B126: No Covenants | D126: Covenants In Place
B128: Yes
B129: No
B130: Must Provide Covenants
B133: Yes
B134: No
B135: Study Not Completed
B138: Yes
B139: No
B140: Study Already Completed
B143: History Architecture
B144: Literature Review
B145: Phase I Archeology Study
B146: Phase I & II Archeology Studies
B147: Phase I Cultural Resources
B148: Phase II Archeology Studies
B149: Phase I Cultural Resources & Phase II Archeology Studies
B150: Yes
B151: No
B152: Study Not Completed
B153: Study Not Required
B155: River
B156: Lake
B157: Canal
B158: Dry | Inland
B160: Yes
B161: No
B162: No Guidelines
B164: Yes
B165: No
B166: Community Owns Building
B168: Yes
B169: No
B170: Not in an Industrial Park
B172: Yes
B173: No
B174: No Master Plan

Sheet Full Data Template (hidden)
C3: InSite's Stand-Alone/Industrial Park Site(s) Evaluation
C4: LEDO Input Data Template
C5: Highest and Best Use/Authentication Identification for Winning Jobs and Investment for your Community!
C6: © 2021 InSite LLC: Confidential and Proprietary Property of InSite, LLC. The data template will remain in its original condition (formatting, spelling, etc.) as submitted to InSite.
C7: Current Stand-Alone Site/Industrial Park Input Information Template
C8: Criteria | D8: Response | E8: Comments
E9: Blue cells do not require data entry.
C10: ='LEDO Site Section'!C10 -> Name of Stand-Alone Site or Industrial Park Submission | D10: ='LEDO Site Section'!D10 -> Fort Union Industrial Park
C11: LOCAL ECONOMIC DEVELOPMENT ORGANIZATION (LEDO) SECTION (to Include Owner Input)
C12: ='LEDO Site Section'!#REF! ->  | D12: =VLOOKUP(C12,'LEDO Site Section'!$C$20:$D$64,2,0) -> 
C13: ='LEDO Site Section'!C20 -> Total available acreage of site | D13: =VLOOKUP(C13,'LEDO Site Section'!$C$20:$D$64,2,0) -> 1200
C14: ='LEDO Site Section'!C12 -> Largest, contiguous, developable acreage (CDA) of site submission. See "EX" worksheet tabs. | D14: =VLOOKUP(C14,'LEDO Site Section'!$C$20:$D$64,2,0) -> 
C15: ='LEDO Site Section'!C21 -> minimum acreage owner is willing to subdivide | D15: =VLOOKUP(C15,'LEDO Site Section'!$C$20:$D$21,2,0) -> 25
C16: ='LEDO Site Section'!#REF! ->  | D16: =VLOOKUP(C16,'LEDO Site Section'!$C$20:$D$64,2,0) -> 
C17: ='LEDO Site Section'!#REF! ->  | D17: =VLOOKUP(C17,'LEDO Site Section'!$C$20:$D$64,2,0) -> 
C18: ='LEDO Site Section'!#REF! ->  | D18: =VLOOKUP(C18,'LEDO Site Section'!$C$20:$D$64,2,0) -> 
C19: ='LEDO Site Section'!#REF! ->  | D19: =VLOOKUP(C19,'LEDO Site Section'!$C$22:$D$64,2,0) -> 
C20: ='LEDO Site Section'!#REF! ->  | D20: =VLOOKUP(C20,'LEDO Site Section'!$C$26:$D$30,2,0) -> 
C21: ='LEDO Site Section'!#REF! ->  | D21: =VLOOKUP(C21,'LEDO Site Section'!$C$26:$D$30,2,0) -> 
C22: ='LEDO Site Section'!#REF! ->  | D22: =VLOOKUP(C22,'LEDO Site Section'!$C$26:$D$30,2,0) -> 
C23: ='LEDO Site Section'!#REF! ->  | D23: =VLOOKUP(C23,'LEDO Site Section'!$C$26:$D$30,2,0) -> 
C24: ='LEDO Site Section'!#REF! ->  | D24: =VLOOKUP(C24,'LEDO Site Section'!$C$26:$D$30,2,0) -> 
C25: ='LEDO Site Section'!#REF! ->  | D25: =VLOOKUP(C25,'LEDO Site Section'!$C$26:$D$30,2,0) -> 
C26: ='LEDO Site Section'!#REF! ->  | D26: =VLOOKUP(C26,'LEDO Site Section'!$C$26:$D$30,2,0) -> 
C27: ='LEDO Site Section'!C26 -> Name of entity responding to this data template | D27: =VLOOKUP(C27,'LEDO Site Section'!$C$26:$D$30,2,0) -> Energy Capital Economic Development
C28: ='LEDO Site Section'!C27 -> full name of person responding | D28: =VLOOKUP(C28,'LEDO Site Section'!$C$26:$D$30,2,0) -> Phil Christopherson
C29: ='LEDO Site Section'!C28 -> title of person responding | D29: =VLOOKUP(C29,'LEDO Site Section'!$C$26:$D$30,2,0) -> CEO
C30: ='LEDO Site Section'!C29 -> contact phone number | D30: =VLOOKUP(C30,'LEDO Site Section'!$C$26:$D$30,2,0) -> 307 686-2603
C31: ='LEDO Site Section'!C30 -> contact email address | D31: =VLOOKUP(C31,'LEDO Site Section'!$C$26:$D$30,2,0) -> phil@EnergyCapitalED.com
C32: ='LEDO Site Section'!C31 -> Who is the Lead, Local Economic Development Agency (LEDO)? | D32: =VLOOKUP(C32,'LEDO Site Section'!$C$31:$D$38,2,0) -> Energy Capital Economic Development
C33: ='LEDO Site Section'!C32 -> Name of LEDO Director/CEO Contact? | D33: =VLOOKUP(C33,'LEDO Site Section'!$C$31:$D$38,2,0) -> Phil Christopherson
C34: ='LEDO Site Section'!C33 -> contact phone number | D34: =VLOOKUP(C34,'LEDO Site Section'!$C$31:$D$38,2,0) -> 307 686-2603
C35: ='LEDO Site Section'!C34 -> contact email address | D35: =VLOOKUP(C35,'LEDO Site Section'!$C$31:$D$38,2,0) -> phil@EnergyCapitalED.com
C36: ='LEDO Site Section'!#REF! ->  | D36: =VLOOKUP(C36,'LEDO Site Section'!$C$31:$D$38,2,0) -> 
C37: ='LEDO Site Section'!#REF! ->  | D37: =VLOOKUP(C37,'LEDO Site Section'!$C$31:$D$38,2,0) -> 
C38: ='LEDO Site Section'!#REF! ->  | D38: =VLOOKUP(C38,'LEDO Site Section'!$C$31:$D$38,2,0) -> 
C39: ='LEDO Site Section'!#REF! ->  | D39: =VLOOKUP(C39,'LEDO Site Section'!$C$31:$D$38,2,0) -> 
C40: ='LEDO Site Section'!C35 -> Is there evidence of existing sink holes, natural springs, etc.? If yes, describe where in comments. | D40: =VLOOKUP(C40,'LEDO Site Section'!$C$31:$D$38,2,0) -> No
C41: ='LEDO Site Section'!C36 -> Identify any easement and rights-of-way on the stand-alone site/within industrial park site(s), and list the ownership of each | D41: =VLOOKUP(C41,'LEDO Site Section'!$C$31:$D$38,2,0) -> Subdivision plat available showing multple easements on the property
C42: ='LEDO Site Section'!C37 -> Describe current use | D42: =VLOOKUP(C42,'LEDO Site Section'!$C$31:$D$38,2,0) -> Industrial Park
C43: ='LEDO Site Section'!C38 -> Describe former use | D43: =VLOOKUP(C43,'LEDO Site Section'!$C$31:$D$38,2,0) -> Industrial site for adjacent coal mine
C44: ='LEDO Site Section'!C44 -> Link to Example of Covenants and Restricted Uses
C45: ='LEDO Site Section'!C42 -> Are there written and recorded covenants with the deed for the site submission to include a list of protective, restricted uses? | D45: =VLOOKUP(C45,'LEDO Site Section'!$C$42:$D$43,2,0) -> Yes
C46: ='LEDO Site Section'!#REF! ->  | D46: =VLOOKUP(C46,'LEDO Site Section'!$C$20:$D$64,2,0) -> 
C47: ='LEDO Site Section'!#REF! ->  | D47: =VLOOKUP(C47,'LEDO Site Section'!$C$20:$D$64,2,0) -> 
C48: ='LEDO Site Section'!C43 -> if no, willingness to record new or amend existing covenants with the provided restricted uses. If not willing, explain in comments. | D48: =VLOOKUP(C48,'LEDO Site Section'!$C$20:$D$64,2,0) -> 0
C49: ='LEDO Site Section'!C49 -> Link to Example Site Plan
C50: ='LEDO Site Section'!C47 -> Have a simple, site(s) layout boundary map with maximum, contiguous, developable acreage, and include the maximum square footage of a building footprint on the site's developable acreage. *Or a simple industrial park layout boundary map with site(s) shown per maximum, contiguous, developable acreage as site boundaries and lot lines, and include the maximum square footage of a building footprint on each site's developable acreage. | D50: ='LEDO Site Section'!D47 -> Yes
C51: ='LEDO Site Section'!C48 -> if yes, provided site plan/layout as a separate attachment and with this submission | D51: =VLOOKUP(C51,'LEDO Site Section'!$C$47:$D$64,2,0) -> 0
C52: ='LEDO Site Section'!C50 -> Number of years site has been available (existence) | D52: =VLOOKUP(C52,'LEDO Site Section'!$C$47:$D$64,2,0) -> 10
C53: ='LEDO Site Section'!C51 -> number of years site has been vacant | D53: =VLOOKUP(C53,'LEDO Site Section'!$C$47:$D$64,2,0) -> 15
C54: ='LEDO Site Section'!C52 -> number of companies in the industrial park, as applicable | D54: =VLOOKUP(C54,'LEDO Site Section'!$C$47:$D$64,2,0) -> 3
C55: ='LEDO Site Section'!C53 -> number of most recent announcement(s). In comments list company, year, jobs, investment. | D55: =VLOOKUP(C55,'LEDO Site Section'!$C$47:$D$64,2,0) -> 0
C56: ='LEDO Site Section'!C39 -> Zoned industrial | D56: =VLOOKUP(C56,'LEDO Site Section'!$C$47:$D$64,2,0) -> 
C57: ='LEDO Site Section'!C40 -> if no, define possibility and length of process for rezoning | D57: =VLOOKUP(C57,'LEDO Site Section'!$C$47:$D$64,2,0) -> 
C58: ='LEDO Site Section'!C41 -> provided a legal definition of zoning code and zoning map to include site boundaries as a separate attachment and with this submission | D58: =VLOOKUP(C58,'LEDO Site Section'!$C$47:$D$64,2,0) -> 
C59: ='LEDO Site Section'!C72 -> are there industrial quality roads/truck routes free from weight or height restrictions providing access to the property? (if no, describe in comments). | D59: =VLOOKUP(C59,'LEDO Site Section'!$C$47:$D$64,2,0) -> 
C60: ='LEDO Site Section'!C45 -> Describe surrounding uses | D60: =VLOOKUP(C60,'LEDO Site Section'!$C$47:$D$64,2,0) -> 
C61: ='LEDO Site Section'!C46 -> adjacent to other manufacturing operations/facilities | D61: =VLOOKUP(C61,'LEDO Site Section'!$C$47:$D$64,2,0) -> 
C62: ='LEDO Site Section'!C54 -> Distance in miles from subdivision/dense residential (describe type of residential in comments) | D62: =VLOOKUP(C62,'LEDO Site Section'!$C$47:$D$64,2,0) -> 4
C63: ='LEDO Site Section'!C55 -> distance in miles from schools | D63: =VLOOKUP(C63,'LEDO Site Section'!$C$47:$D$64,2,0) -> 5
C64: ='LEDO Site Section'!C56 -> distance in miles from public park | D64: =VLOOKUP(C64,'LEDO Site Section'!$C$47:$D$64,2,0) -> 5
C65: ='LEDO Site Section'!C57 -> distance in miles from retirement centers | D65: =VLOOKUP(C65,'LEDO Site Section'!$C$47:$D$64,2,0) -> 6.6
C66: ='LEDO Site Section'!C58 -> distance in miles from correctional facilities | D66: =VLOOKUP(C66,'LEDO Site Section'!$C$47:$D$64,2,0) -> 7
C67: ='LEDO Site Section'!C59 -> distance in miles from cemeteries (note in comments - small, medium, or large cemetery) | D67: =VLOOKUP(C67,'LEDO Site Section'!$C$47:$D$64,2,0) -> 6.14
C68: ='LEDO Site Section'!C60 -> Is the site in a 100-year flood plain? Partially would be answered yes. If submitting multiple industrial park sites, note site number(s) in the comments. | D68: =VLOOKUP(C68,'LEDO Site Section'!$C$47:$D$64,2,0) -> No
C69: ='LEDO Site Section'!C61 -> where is the location of the flood plain on the site? (i.e. Northwest corner). If submitting multiple industrial park sites, note in comments the additional site number(s) and location. | D69: =VLOOKUP(C69,'LEDO Site Section'!$C$47:$D$64,2,0) -> 0
C70: ='LEDO Site Section'!C62 -> what is the percentage of the site(s) in the floodplain? If submitting multiple industrial park sites, note in comments the site number and percent in floodplain. | D70: =VLOOKUP(C70,'LEDO Site Section'!$C$47:$D$64,2,0) -> 0
C71: ='LEDO Site Section'!C63 -> are there any areas with bodies of water, creeks, wetlands, etc. that impact the constructible, developable acreage of the site? (if yes, note how many acres per site and location in comments)? | D71: =VLOOKUP(C71,'LEDO Site Section'!$C$47:$D$64,2,0) -> No
C72: ='LEDO Site Section'!C64 -> provided a 100-year FEMA flood plain map, to include the site boundaries, as a separate attachment and with this submission | D72: =VLOOKUP(C72,'LEDO Site Section'!$C$47:$D$64,2,0) -> 0
C73: ='LEDO Site Section'!#REF! -> 
C74: ='LEDO Site Section'!#REF! ->  | D74: =VLOOKUP(C74,'LEDO Site Section'!$C$65:$D$77,2,0) -> 
C75: ='LEDO Site Section'!#REF! ->  | D75: =VLOOKUP(C75,'LEDO Site Section'!$C$65:$D$77,2,0) -> 
C76: ='LEDO Site Section'!#REF! ->  | D76: =VLOOKUP(C76,'LEDO Site Section'!$C$65:$D$77,2,0) -> 
C77: ='LEDO Site Section'!#REF! ->  | D77: =VLOOKUP(C77,'LEDO Site Section'!$C$65:$D$77,2,0) -> 
C78: ='LEDO Site Section'!#REF! ->  | D78: =VLOOKUP(C78,'LEDO Site Section'!$C$65:$D$77,2,0) -> 
C79: ='LEDO Site Section'!#REF! ->  | D79: =VLOOKUP(C79,'LEDO Site Section'!$C$65:$D$77,2,0) -> 
C80: ='LEDO Site Section'!C65 -> Describe general site configuration. If submitting multiple industrial park sites, note in comments the site number and configuration. (rectangular, square, L, etc.). | D80: =VLOOKUP(C80,'LEDO Site Section'!$C$65:$D$77,2,0) -> Rolling low hills
C81: ='LEDO Site Section'!C66 -> Are there any structures on the site that will impact constructability? If yes, describe in comments. If submitting multiple industrial park sites, note in comments the site number and description. | D81: =VLOOKUP(C81,'LEDO Site Section'!$C$65:$D$77,2,0) -> No
C82: ='LEDO Site Section'!C67 -> Indicate the terrain of the site. If submitting multiple industrial park sites, note in comments the site number and terrain. (flat, gently rolling, challenging). | D82: =VLOOKUP(C82,'LEDO Site Section'!$C$65:$D$77,2,0) -> low rolling hills
C83: ='LEDO Site Section'!C68 -> what is the percent slope of the site? Determine by using a topography map. Change of elevation divided by the distance. If submitting multiple industrial park sites, note in comments the site number and percent. | D83: =VLOOKUP(C83,'LEDO Site Section'!$C$65:$D$77,2,0) -> 0.03
C84: ='LEDO Site Section'!C69 -> Describe the soil type (sandy, clay, etc.). If submitting multiple industrial park sites, note in comments the site number and type. | D84: =VLOOKUP(C84,'LEDO Site Section'!$C$65:$D$77,2,0) -> thin layers of top soil over scoria
C85: ='LEDO Site Section'!C70 -> Is there a graded pad on the site? If yes, indicate square footage for building footprint in comments. If submitting multiple industrial park sites, note in comments the site number, yes or no and building footprint square footage. | D85: =VLOOKUP(C85,'LEDO Site Section'!$C$65:$D$77,2,0) -> No
C86: ='LEDO Site Section'!C71 -> Is the site easily accessible? If no, describe impediments. | D86: =VLOOKUP(C86,'LEDO Site Section'!$C$65:$D$77,2,0) -> Yes
C87: ='LEDO Site Section'!C73 -> number of roads accessing the site | D87: =VLOOKUP(C87,'LEDO Site Section'!$C$65:$D$77,2,0) -> 2
C88: ='LEDO Site Section'!C74 -> describe any road access improvements necessary | D88: =VLOOKUP(C88,'LEDO Site Section'!$C$65:$D$77,2,0) -> Roads are currently gravel,
C89: ='LEDO Site Section'!C75 -> distance in miles or feet (indicate in comments) to major 4-lane highway and/or interstate (include names in comments) | D89: =VLOOKUP(C89,'LEDO Site Section'!$C$65:$D$77,2,0) -> 4.2
C90: ='LEDO Site Section'!C76 -> is access to the site controlled by a traffic light? | D90: =VLOOKUP(C90,'LEDO Site Section'!$C$65:$D$77,2,0) -> No
C91: ='LEDO Site Section'!C77 -> Can the site be viewed from the highway/interstate? | D91: =VLOOKUP(C91,'LEDO Site Section'!$C$65:$D$77,2,0) -> Yes
C92: ='LEDO Site Section'!C78 -> GENERAL TRANSPORTATION SECTION
C93: ='LEDO Site Section'!C79 -> Distance in miles to the nearest commercial airport | D93: =VLOOKUP(C93,'LEDO Site Section'!$C$79:$D$83,2,0) -> 5
C94: ='LEDO Site Section'!C80 -> name of nearest commercial airport | D94: =VLOOKUP(C94,'LEDO Site Section'!$C$79:$D$83,2,0) -> NE Wyoming Regional Airport
C95: ='LEDO Site Section'!C81 -> Distance in miles to the nearest port | D95: =VLOOKUP(C95,'LEDO Site Section'!$C$79:$D$83,2,0) -> 680
C96: ='LEDO Site Section'!C82 -> type of port | D96: =VLOOKUP(C96,'LEDO Site Section'!$C$79:$D$83,2,0) -> Lake
C97: ='LEDO Site Section'!C83 -> name of port | D97: =VLOOKUP(C97,'LEDO Site Section'!$C$79:$D$83,2,0) -> Port of Duluth-Superior
C98: ='LEDO Site Section'!#REF! -> 
C99: ='LEDO Site Section'!#REF! ->  | D99: =VLOOKUP(C99,'LEDO Site Section'!#REF!,2,0) -> 
C100: ='LEDO Site Section'!#REF! ->  | D100: =VLOOKUP(C100,'LEDO Site Section'!#REF!,2,0) -> 
C101: ='LEDO Site Section'!#REF! ->  | D101: =VLOOKUP(C101,'LEDO Site Section'!#REF!,2,0) -> 
C102: ='LEDO Site Section'!#REF! ->  | D102: =VLOOKUP(C102,'LEDO Site Section'!#REF!,2,0) -> 
C103: ='LEDO Site Section'!#REF! ->  | D103: =VLOOKUP(C103,'LEDO Site Section'!#REF!,2,0) -> 
C104: ='LEDO Site Section'!#REF! ->  | D104: =VLOOKUP(C104,'LEDO Site Section'!#REF!,2,0) -> 
C105: ='LEDO Site Section'!#REF! ->  | D105: =VLOOKUP(C105,'LEDO Site Section'!#REF!,2,0) -> 
C106: ='LEDO Site Section'!#REF! ->  | D106: =VLOOKUP(C106,'LEDO Site Section'!#REF!,2,0) -> 
C107: ='LEDO Site Section'!#REF! ->  | D107: =VLOOKUP(C107,'LEDO Site Section'!#REF!,2,0) -> 
C108: ='LEDO Site Section'!#REF! ->  | D108: =VLOOKUP(C108,'LEDO Site Section'!#REF!,2,0) -> 
C109: ='LEDO Site Section'!C94 -> OTHER INFORMATION SECTION
C110: ='LEDO Site Section'!C95 -> Regional population (45-mile radius commuting pattern) | D110: =VLOOKUP(C110,'LEDO Site Section'!C95:$D$98,2,0) -> 47026
C111: ='LEDO Site Section'!C96 -> Regional workforce (45-mile radius commuting pattern) | D111: =VLOOKUP(C111,'LEDO Site Section'!C96:$D$98,2,0) -> 23600
C112: ='LEDO Site Section'!#REF! ->  | D112: =VLOOKUP(C112,'LEDO Site Section'!C97:$D$98,2,0) -> 
C113: ='LEDO Site Section'!#REF! ->  | D113: =VLOOKUP(C113,'LEDO Site Section'!C97:$D$98,2,0) -> 
C114: ='LEDO Site Section'!C97 -> Does your city and/or county have incentive guidelines/thresholds that have been approved by the local, governing body? | D114: =VLOOKUP(C114,'LEDO Site Section'!C97:$D$98,2,0) -> No
C115: ='LEDO Site Section'!C98 -> does your city and/or county have incentive guidelines/thresholds that have been approved by the local, governing body that are specific to the site? | D115: =VLOOKUP(C115,'LEDO Site Section'!C98:$D$98,2,0) -> No
C116: OWNERSHIP SECTION (to Include Input from LEDO)
C117: =#REF! ->  | D117: =VLOOKUP(C117,#REF!,2,0) -> 
C118: =#REF! ->  | D118: =VLOOKUP(C118,#REF!,2,0) -> 
C119: =#REF! ->  | D119: =VLOOKUP(C119,#REF!,2,0) -> 
C120: =#REF! ->  | D120: =VLOOKUP(C120,#REF!,2,0) -> 
C121: =#REF! ->  | D121: =VLOOKUP(C121,#REF!,2,0) -> 
C122: =#REF! ->  | D122: =VLOOKUP(C122,#REF!,2,0) -> 
C123: =#REF! ->  | D123: =VLOOKUP(C123,#REF!,2,0) -> 
C124: =#REF! ->  | D124: =VLOOKUP(C124,#REF!,2,0) -> 
C125: =#REF! ->  | D125: =VLOOKUP(C125,#REF!,2,0) -> 
C126: =#REF! ->  | D126: =VLOOKUP(C126,#REF!,2,0) -> 
C127: =#REF! -> 
C128: =#REF! ->  | D128: =VLOOKUP(C128,#REF!,2,0) -> 
C129: =#REF! ->  | D129: =VLOOKUP(C129,#REF!,2,0) -> 
C130: =#REF! ->  | D130: =VLOOKUP(C130,#REF!,2,0) -> 
C131: =#REF! -> 
C132: =#REF! ->  | D132: =VLOOKUP(C132,#REF!,2,0) -> 
C133: Site Due Diligence Questions (Input from Owner and LEDO)
C134: Any Due Diligence Dated 10 years or Older, Must Be Updated
C135: ='Owner LEDO Due Diligence Sect'!C22 -> Completed Phase I ESA on the site submission | D135: =VLOOKUP(C135,'Owner LEDO Due Diligence Sect'!C22:$D$28,2,0) -> No
C136: ='Owner LEDO Due Diligence Sect'!C23 -> if yes, date of the Phase I ESA (if cell input does not function correctly, input date into comments) | D136: =VLOOKUP(C136,'Owner LEDO Due Diligence Sect'!C23:$D$28,2,0) -> 0
C137: ='Owner LEDO Due Diligence Sect'!C24 -> do the results of the Phase I ESA require further action? | D137: =VLOOKUP(C137,'Owner LEDO Due Diligence Sect'!C24:$D$28,2,0) -> 0
C138: ='Owner LEDO Due Diligence Sect'!C25 -> do you (owner and LEDO) have an electronic copy of the study on file? If no, get one for your files. Do not provide full study. | D138: =VLOOKUP(C138,'Owner LEDO Due Diligence Sect'!C25:$D$28,2,0) -> 0
C139: ='Owner LEDO Due Diligence Sect'!C26 -> Link to Content for Engineering Firm Letter. Any other format will be rejected.
C140: ='Owner LEDO Due Diligence Sect'!C27 -> provided summary letter from the engineering firm in the identical format shown in the example, that is no more than 10 years old and is no more than one page, stating specifically and exactly that the site is clear; and if not, why and what has to be done next. | D140: ='Owner LEDO Due Diligence Sect'!D27 -> 0
C141: ='Owner LEDO Due Diligence Sect'!C28 -> if a Phase I ESA has not been completed, are you willing to pursue this effort? | D141: =VLOOKUP(C141,'Owner LEDO Due Diligence Sect'!C28:$D$28,2,0) -> Yes
C142: ='Owner LEDO Due Diligence Sect'!C30 -> Completed Phase II ESA on the entire site submission | D142: =VLOOKUP(C142,'Owner LEDO Due Diligence Sect'!C30:$D$34,2,0) -> No
C143: ='Owner LEDO Due Diligence Sect'!C31 -> if yes, date of the Phase II ESA (if cell input does not function correctly, input date into comments) | D143: =VLOOKUP(C143,'Owner LEDO Due Diligence Sect'!C31:$D$34,2,0) -> 0
C144: ='Owner LEDO Due Diligence Sect'!C32 -> do you (owner and LEDO) have an electronic copy of the study on file? If no, get one for your files. Do not provide full study. | D144: =VLOOKUP(C144,'Owner LEDO Due Diligence Sect'!C32:$D$34,2,0) -> 0
C145: ='Owner LEDO Due Diligence Sect'!C33 -> provided summary letter from the engineering firm in the identical format shown in the example, that is no more than 10 years old and is no more than one page, stating specifically and exactly that the site is clear; and if not, why and what has to be done next. | D145: ='Owner LEDO Due Diligence Sect'!D33 -> 0
C146: ='Owner LEDO Due Diligence Sect'!C34 -> if a Phase II ESA has not been completed, are you willing to pursue this effort? | D146: =VLOOKUP(C146,'Owner LEDO Due Diligence Sect'!C34:$D$34,2,0) -> Yes
C147: ='Owner LEDO Due Diligence Sect'!C36 -> Completed Geotechnical Study on the entire site submission | D147: =VLOOKUP(C147,'Owner LEDO Due Diligence Sect'!C36:$D$41,2,0) -> No
C148: ='Owner LEDO Due Diligence Sect'!C37 -> if yes, date of the Geotechnical Study (if cell input does not function correctly, input date into comments) | D148: =VLOOKUP(C148,'Owner LEDO Due Diligence Sect'!C37:$D$41,2,0) -> 00:00:00
C149: ='Owner LEDO Due Diligence Sect'!C38 -> do you (owner and LEDO) have an electronic copy of the study on file? If no, get one for your files. Do not provide full study. | D149: =VLOOKUP(C149,'Owner LEDO Due Diligence Sect'!C38:$D$41,2,0) -> 0
C150: ='Owner LEDO Due Diligence Sect'!C39 -> Link to Content for Engineering Firm Letter. Any other format will be rejected.
C151: ='Owner LEDO Due Diligence Sect'!C40 -> provided summary letter from the engineering firm in the identical format shown in the example, that is no more than 10 years old and is no more than one page, stating specifically and exactly that the site is clear; and if not, why and what has to be done next. | D151: ='Owner LEDO Due Diligence Sect'!D40 -> 0
C152: ='Owner LEDO Due Diligence Sect'!C41 -> if a Geotechnical Study has not been completed, are you willing to pursue this effort? | D152: =VLOOKUP(C152,'Owner LEDO Due Diligence Sect'!C41:$D$45,2,0) -> Yes
C153: ='Owner LEDO Due Diligence Sect'!C43 -> Completed Wetlands Delineation Study on the entire site submission | D153: =VLOOKUP(C153,'Owner LEDO Due Diligence Sect'!C43:$D$45,2,0) -> No
C154: ='Owner LEDO Due Diligence Sect'!C44 -> if yes, date of the Wetland Delineation Study (if cell input does not function correctly, input date into comments) | D154: =VLOOKUP(C154,'Owner LEDO Due Diligence Sect'!C44:$D$45,2,0) -> 0
C155: ='Owner LEDO Due Diligence Sect'!C45 -> do you (owner and LEDO) have an electronic copy of the study on file? If no, get one for your files. Do not provide full study. | D155: =VLOOKUP(C155,'Owner LEDO Due Diligence Sect'!C45:$D$45,2,0) -> 0
C156: ='Owner LEDO Due Diligence Sect'!C46 -> Link to Content for Engineering Firm Letter. Any other format will be rejected.
C157: ='Owner LEDO Due Diligence Sect'!C47 -> provided summary letter from the engineering firm in the identical format shown in the example, that is no more than 10 years old and is no more than one page, stating specifically and exactly that the site is clear and if not, why and what has to be done next. | D157: ='Owner LEDO Due Diligence Sect'!D47 -> 0
C158: ='Owner LEDO Due Diligence Sect'!C48 -> included wetlands delineation map with park/site boundaries as a separate attachment and with this submission | D158: ='Owner LEDO Due Diligence Sect'!D48 -> 0
C159: ='Owner LEDO Due Diligence Sect'!C49 -> Link to Example Final JD Letter. Preliminary JD's are not accepted.
C160: ='Owner LEDO Due Diligence Sect'!C50 -> provided an APPROVED, FINAL (not preliminary) Jurisdictional Determination Letter from the Corps of Engineers dated within the last 10 years as a separate attachment and with this submission. | D160: =VLOOKUP(C160,'Owner LEDO Due Diligence Sect'!C47:$D$70,2,0) -> 0
C161: ='Owner LEDO Due Diligence Sect'!C51 -> if a Wetlands Delineation Study has not been completed, are you willing to pursue this effort? | D161: =VLOOKUP(C161,'Owner LEDO Due Diligence Sect'!C48:$D$70,2,0) -> Yes
C162: ='Owner LEDO Due Diligence Sect'!C53 -> Completed Cultural Resource Study on the entire site submission (not a literature review) | D162: =VLOOKUP(C162,'Owner LEDO Due Diligence Sect'!C49:$D$70,2,0) -> No
C163: ='Owner LEDO Due Diligence Sect'!C54 -> if yes, date of the Cultural Resource Study (if cell input does not function correctly, input date into comments) | D163: =VLOOKUP(C163,'Owner LEDO Due Diligence Sect'!C50:$D$70,2,0) -> 0
C164: ='Owner LEDO Due Diligence Sect'!C55 -> do you (owner and LEDO) have an electronic copy of the study on file? If no, get one for your files. Do not provide full study. | D164: =VLOOKUP(C164,'Owner LEDO Due Diligence Sect'!C51:$D$70,2,0) -> 0
C165: ='Owner LEDO Due Diligence Sect'!C56 -> Link to Content for Engineering Firm Letter. Any other format will be rejected.
C166: ='Owner LEDO Due Diligence Sect'!C57 -> provided summary letter from the engineering firm in the identical format shown in the example, that is no more than 10 years old and is no more than one page, stating specifically and exactly that the site is clear and if not, why and what has to be done next. | D166: ='Owner LEDO Due Diligence Sect'!D57 -> 0
C167: ='Owner LEDO Due Diligence Sect'!C58 -> included historical site delineation map with park/site boundaries as a separate attachment and with this submission | D167: =VLOOKUP(C167,'Owner LEDO Due Diligence Sect'!C54:$D$70,2,0) -> 0
C168: ='Owner LEDO Due Diligence Sect'!C59 -> Link to Example SHPO Letter
C169: ='Owner LEDO Due Diligence Sect'!C60 -> provided a concurrence letter from SHPO - Ohio History Connection (State Historic and Preservation Office) dated within the last 10 years as a separate attachment and with this submission. | D169: =VLOOKUP(C169,'Owner LEDO Due Diligence Sect'!C55:$D$70,2,0) -> 0
C170: ='Owner LEDO Due Diligence Sect'!C61 -> if a Phase I Cultural Resources Study has not been completed, are you willing to pursue this effort? | D170: =VLOOKUP(C170,'Owner LEDO Due Diligence Sect'!C56:$D$70,2,0) -> Yes
C171: ='Owner LEDO Due Diligence Sect'!C63 -> Completed Endangered Species Study on the entire site submission | D171: =VLOOKUP(C171,'Owner LEDO Due Diligence Sect'!C57:$D$70,2,0) -> No
C172: ='Owner LEDO Due Diligence Sect'!C64 -> if yes, date of the Endangered Species Study (if cell input does not function correctly, input date into comments) | D172: =VLOOKUP(C172,'Owner LEDO Due Diligence Sect'!C58:$D$70,2,0) -> 0
C173: ='Owner LEDO Due Diligence Sect'!C65 -> do you (owner and LEDO) have an electronic copy of the study on file. If no, get one for your files? Do not provide full study. | D173: =VLOOKUP(C173,'Owner LEDO Due Diligence Sect'!C59:$D$70,2,0) -> 0
C174: ='Owner LEDO Due Diligence Sect'!C66 -> Link to Content for Engineering Firm Letter. Any other format will be rejected.
C175: ='Owner LEDO Due Diligence Sect'!C67 -> provided summary letter from the engineering firm in the identical format shown in the example, that is no more than 10 years old and is no more than one page, stating specifically and exactly that the site is clear and if not, why and what has to be done next. | D175: ='Owner LEDO Due Diligence Sect'!D67 -> 0
C176: ='Owner LEDO Due Diligence Sect'!C68 -> Link to Example USFWS Letter
C177: ='Owner LEDO Due Diligence Sect'!C69 -> provided a letter from USFWS (U.S. Fish and Wildlife Services) as a separate attachment and with this submission, confirming no findings or findings and path forward for the site dated within the last 10 years. | D177: =VLOOKUP(C177,'Owner LEDO Due Diligence Sect'!C61:$D$70,2,0) -> 0
C178: ='Owner LEDO Due Diligence Sect'!C70 -> if an Endangered Species Study has not been completed, are you willing to pursue this effort? | D178: =VLOOKUP(C178,'Owner LEDO Due Diligence Sect'!C63:$D$70,2,0) -> Yes
C179: Electric Questions
C180: ='Electric Section'!C20 -> Electric lines are to the site boundaries | D180: =VLOOKUP(C180,'Electric Section'!C20:$D$40,2,0) -> Yes
C181: ='Electric Section'!C21 -> if no, distance in feet | D181: =VLOOKUP(C181,'Electric Section'!C21:$D$40,2,0) -> 0
C182: ='Electric Section'!C25 -> Name of provider | D182: =VLOOKUP(C182,'Electric Section'!C25:$D$40,2,0) -> Powder River Energy Coporation
C183: ='Electric Section'!C26 -> name of utility contact representative providing information | D183: =VLOOKUP(C183,'Electric Section'!C26:$D$40,2,0) -> Taylor Johnson
C184: ='Electric Section'!C27 -> title of person responding | D184: =VLOOKUP(C184,'Electric Section'!C27:$D$40,2,0) -> System Engineer
C185: ='Electric Section'!C28 -> contact phone number | D185: =VLOOKUP(C185,'Electric Section'!C28:$D$40,2,0) -> 307-680-0096
C186: ='Electric Section'!C29 -> contact email address | D186: =VLOOKUP(C186,'Electric Section'!C29:$D$40,2,0) -> taylorj@precorp.coop
C187: ='Electric Section'!C30 -> Size of line(s) at the site boundaries | D187: =VLOOKUP(C187,'Electric Section'!C30:$D$41,2,0) -> 2/0, 4/0
C188: ='Electric Section'!C31 -> Existing distribution-level capacity at the site boundaries (must provide in MW) | D188: =VLOOKUP(C188,'Electric Section'!C31:$D$41,2,0) -> 4.5
C189: ='Electric Section'!C35 -> Response Optional: Is transmission-level service available at the site boundaries? | D189: =VLOOKUP(C189,'Electric Section'!C35:$D$41,2,0) -> No
C190: ='Electric Section'!C36 -> Response Optional: Provide approximate transmission-level service capacity. Indicate in the comments section whether the number is in MW (preferred) or voltage. | D190: =VLOOKUP(C190,'Electric Section'!C36:$D$41,2,0) -> 0
C191: ='Electric Section'!C37 -> Distance in miles to substation serving the site boundaries | D191: =VLOOKUP(C191,'Electric Section'!C37:$D$41,2,0) -> 0.85
C192: ='Electric Section'!C38 -> Type of feed | D192: =VLOOKUP(C192,'Electric Section'!C38:$D$41,2,0) -> Dual Feed - Single Substation
C193: ='Electric Section'!C39 -> Redundant | D193: =VLOOKUP(C193,'Electric Section'!C39:$D$41,2,0) -> No
C194: ='Electric Section'!C40 -> Provided a map indicating service to the site boundaries. See the "EX" worksheet tabs. | D194: =VLOOKUP(C194,'Electric Section'!C40:$D$41,2,0) -> Yes
C195: ='Electric Section'!C41 -> Provided signature below that confirms each response within this section is exactly as written. | D195: =VLOOKUP(C195,'Electric Section'!C41:$D$41,2,0) -> Yes
C196: Sewer Questions
C197: ='Sewer Section'!C20 -> Sewer line to the site boundaries | D197: =VLOOKUP(C197,'Sewer Section'!C20:$D$37,2,0) -> No
C198: ='Sewer Section'!C21 -> if no, distance in feet | D198: =VLOOKUP(C198,'Sewer Section'!C21:$D$37,2,0) -> 0
C199: ='Sewer Section'!C25 -> Name of provider | D199: =VLOOKUP(C199,'Sewer Section'!C25:$D$37,2,0) -> 0
C200: ='Sewer Section'!C26 -> name of utility contact representative providing information | D200: =VLOOKUP(C200,'Sewer Section'!C26:$D$37,2,0) -> 0
C201: ='Sewer Section'!C27 -> title of person responding | D201: =VLOOKUP(C201,'Sewer Section'!C27:$D$37,2,0) -> 0
C202: ='Sewer Section'!C28 -> contact phone number | D202: =VLOOKUP(C202,'Sewer Section'!C28:$D$37,2,0) -> 0
... 52 more rows

Sheet Local Response Team
C3: INSITE'S SITE AND COMMUNITY CLIENT READINESS PROGRAM
C4: InSite's Site Selection Data Template to Compile Site Specs
C5: Stand-Alone Site and/or Industrial Park Site(s): Referenced as "Site" in Document
C6: LEDO Input Data Template
C7: © 2022 InSite LLC: Confidential and Proprietary Property of InSite, LLC. The data template will remain in its original condition (formatting, spelling, etc.) as submitted to InSite.
C8: Name of Stand-Alone Site or Industrial Park Submission | D8: Fort Union Industrial Park
C9: Is this Site Submission..... | D9: ='Start Instructions'!$D$9 -> An Industrial Park Site
C10: Largest, contiguous, developable acreage (CDA) of site submission. See "EX" worksheet tabs. | D10: ='Start Instructions'!D10 -> 460
C11: Submission street/physical address | D11: ='Start Instructions'!$D$11 -> 3574 N. Garner Lake Rd
C12: city | D12: ='Start Instructions'!$D$12 -> Gillette
C13: county | D13: ='Start Instructions'!$D$13 -> Campbell
C14: state | D14: ='Start Instructions'!$D$14 -> WY
C15: zip code | D15: ='Start Instructions'!$D$15 -> 82716
C16: GPS Coordinates | D16: ='Start Instructions'!$D$16 -> 44.354032988369234, -105.4208611010569
C17: INDICATE THAT THE LOCAL ECONOMIC DEVELOPMENT RESPONSE TEAM HAS BEEN ASSEMBLED
C18: Local Economic Development Staff | D18: Yes
C19: Property Owner | D19: Yes
C20: Electric Provider | D20: Yes
C21: Water Provider | D21: Yes
C22: Sewer Provider | D22: Yes
C23: Natural Gas Provider | D23: Yes
C24: Fiber Provider | D24: Yes
C25: Rail Provider | D25: No

Sheet LEDO Site Section
C2: INSITE'S SITE AND COMMUNITY CLIENT READINESS PROGRAM
C3: InSite's Site Selection Data Template to Compile Site Specs
C4: Stand-Alone Site and/or Industrial Park Site(s): Referenced as "Site" in Document
C5: LEDO Input Data Template
C6: © 2022 InSite LLC: Confidential and Proprietary Property of InSite, LLC. The data template will remain in its original condition (formatting, spelling, etc.) as submitted to InSite.
C7: "Designed For Currently" Site Specs/Data Input Template
C8: Criteria | D8: Data/Response this Column Only | E8: Comments only in Gray Cells
E9: Blue cells do not require data entry.
C10: Name of Stand-Alone Site or Industrial Park Submission | D10: ='Start Instructions'!$D$8 -> Fort Union Industrial Park
C11: Is this Site Submission..... | D11: ='Start Instructions'!$D$9 -> An Industrial Park Site
C12: Largest, contiguous, developable acreage (CDA) of site submission. See "EX" worksheet tabs. | D12: ='Start Instructions'!$D$10 -> 460
C13: Submission street/physical address | D13: ='Start Instructions'!$D$11 -> 3574 N. Garner Lake Rd
C14: city | D14: ='Start Instructions'!$D$12 -> Gillette
C15: county | D15: ='Start Instructions'!$D$13 -> Campbell
C16: state | D16: ='Start Instructions'!$D$14 -> WY
C17: zip code | D17: ='Start Instructions'!$D$15 -> 82716
C18: GPS Coordinates | D18: ='Start Instructions'!$D$16 -> 44.354032988369234, -105.4208611010569
C19: LOCAL ECONOMIC DEVELOPMENT ORGANIZATION (LEDO) SECTION (to Include Owner Input)
C20: Total available acreage of site | D20: 1200
C21: minimum acreage owner is willing to subdivide | D21: 25
C22: Publicly owned (LEDO, Community, Industrial Authority, etc.)? Put name(s) in comments. | D22: No | E22: Privately held
C23: number of owners (list names in comments) | D23: 1 | E23: Greenbridge Holdings
C24: Is there additional acreage available contiguous to the site boundaries that could be potential for expansion of site? Provide estimated number of additional acres in comments. | D24: No
C25: If an industrial park site submission, number of additional, available sites in the park. List their respective CDAs in the comments section. See EX IND PARK MAP CDA worksheet tab. | D25: 4
C26: Name of entity responding to this data template | D26: Energy Capital Economic Development
C27: full name of person responding | D27: Phil Christopherson
C28: title of person responding | D28: CEO
C29: contact phone number | D29: 307 686-2603
C30: contact email address | D30: phil@EnergyCapitalED.com
C31: Who is the Lead, Local Economic Development Agency (LEDO)? | D31: Energy Capital Economic Development
C32: Name of LEDO Director/CEO Contact? | D32: Phil Christopherson
C33: contact phone number | D33: 307 686-2603
C34: contact email address | D34: phil@EnergyCapitalED.com
C35: Is there evidence of existing sink holes, natural springs, etc.? If yes, describe where in comments. | D35: No
C36: Identify any easement and rights-of-way on the stand-alone site/within industrial park site(s), and list the ownership of each | D36: Subdivision plat available showing multple easements on the property
C37: Describe current use | D37: Industrial Park
C38: Describe former use | D38: Industrial site for adjacent coal mine
C39: Zoned industrial | D39: Yes
C40: if no, define possibility and length of process for rezoning
C41: provided a legal definition of zoning code and zoning map to include site boundaries as a separate attachment and with this submission | D41: Yes
C42: Are there written and recorded covenants with the deed for the site submission to include a list of protective, restricted uses? | D42: Yes
C43: if no, willingness to record new or amend existing covenants with the provided restricted uses. If not willing, explain in comments.
C44: Link to Example of Covenants and Restricted Uses
C45: Describe surrounding uses | D45: Agricultural
C46: adjacent to other manufacturing operations/facilities | D46: No
C47: Have a simple, site(s) layout boundary map with maximum, contiguous, developable acreage, and include the maximum square footage of a building footprint on the site's developable acreage. *Or a simple industrial park layout boundary map with site(s) shown per maximum, contiguous, developable acreage as site boundaries and lot lines, and include the maximum square footage of a building footprint on each site's developable acreage. | D47: Yes
C48: if yes, provided site plan/layout as a separate attachment and with this submission
C49: Link to Example Site Plan
C50: Number of years site has been available (existence) | D50: 10
C51: number of years site has been vacant | D51: 15
C52: number of companies in the industrial park, as applicable | D52: 3
C53: number of most recent announcement(s). In comments list company, year, jobs, investment. | D53: 0
C54: Distance in miles from subdivision/dense residential (describe type of residential in comments) | D54: 4 | E54: Straight line distance to closest residential neighborhood
C55: distance in miles from schools | D55: 5 | E55: Lakeview Elementary School
C56: distance in miles from public park | D56: 5 | E56: Heritage Village Park
C57: distance in miles from retirement centers | D57: 6.6 | E57: Primrose Retirement Community
C58: distance in miles from correctional facilities | D58: 7 | E58: Campbell County Jail
C59: distance in miles from cemeteries (note in comments - small, medium, or large cemetery) | D59: 6.14 | E59: Mt. Pisgah Cemetery
C60: Is the site in a 100-year flood plain? Partially would be answered yes. If submitting multiple industrial park sites, note site number(s) in the comments. | D60: No
C61: where is the location of the flood plain on the site? (i.e. Northwest corner). If submitting multiple industrial park sites, note in comments the additional site number(s) and location.
C62: what is the percentage of the site(s) in the floodplain? If submitting multiple industrial park sites, note in comments the site number and percent in floodplain.
C63: are there any areas with bodies of water, creeks, wetlands, etc. that impact the constructible, developable acreage of the site? (if yes, note how many acres per site and location in comments)? | D63: No
C64: provided a 100-year FEMA flood plain map, to include the site boundaries, as a separate attachment and with this submission | E64: Not in a flood plain
C65: Describe general site configuration. If submitting multiple industrial park sites, note in comments the site number and configuration. (rectangular, square, L, etc.). | D65: Rolling low hills
C66: Are there any structures on the site that will impact constructability? If yes, describe in comments. If submitting multiple industrial park sites, note in comments the site number and description. | D66: No
C67: Indicate the terrain of the site. If submitting multiple industrial park sites, note in comments the site number and terrain. (flat, gently rolling, challenging). | D67: low rolling hills
C68: what is the percent slope of the site? Determine by using a topography map. Change of elevation divided by the distance. If submitting multiple industrial park sites, note in comments the site number and percent. | D68: 0.03
C69: Describe the soil type (sandy, clay, etc.). If submitting multiple industrial park sites, note in comments the site number and type. | D69: thin layers of top soil over scoria
C70: Is there a graded pad on the site? If yes, indicate square footage for building footprint in comments. If submitting multiple industrial park sites, note in comments the site number, yes or no and building footprint square footage. | D70: No
C71: Is the site easily accessible? If no, describe impediments. | D71: Yes
C72: are there industrial quality roads/truck routes free from weight or height restrictions providing access to the property? (if no, describe in comments). | D72: Yes
C73: number of roads accessing the site | D73: 2
C74: describe any road access improvements necessary | D74: Roads are currently gravel,
C75: distance in miles or feet (indicate in comments) to major 4-lane highway and/or interstate (include names in comments) | D75: 4.2 | E75: Interstate 90
C76: is access to the site controlled by a traffic light? | D76: No
C77: Can the site be viewed from the highway/interstate? | D77: Yes
C78: GENERAL TRANSPORTATION SECTION
C79: Distance in miles to the nearest commercial airport | D79: 5
C80: name of nearest commercial airport | D80: NE Wyoming Regional Airport
C81: Distance in miles to the nearest port | D81: 680
C82: type of port | D82: Lake | E82: Lake Superior
C83: name of port | D83: Port of Duluth-Superior
C84: ECONOMIC DEVELOPMENT ORGANIZATION INFORMATION SECTION
C85: Type of organization (public; private; public/private; chamber; city; county; etc.) | D85: Private 501 c6
C86: Department responsible for Economic Development | D86: Energy Capital Economic Development
C87: Title of person responsible for Economic Development | D87: Chief Executive Officer
C88: Total budget amount allocated solely to Economic Development | D88: 450000
C89: Percentage of public funding | D89: 0.66
C90: Percentage of private funding | D90: 0.33
C91: Number of full-time staff that is dedicated solely to economic development | D91: 3
C92: Number of part-time economic development staff | D92: 0
C93: All staff proficient in Microsoft Office Suite (Word, Excel, PowerPoint, Outlook) | D93: Yes
C94: OTHER INFORMATION SECTION
C95: Regional population (45-mile radius commuting pattern) | D95: 47026 | E95: From 2020 census for Campbell County, Wyoming,
C96: Regional workforce (45-mile radius commuting pattern) | D96: 23600 | E96: From 2020 census for Campbell County, Wyoming,
C97: Does your city and/or county have incentive guidelines/thresholds that have been approved by the local, governing body? | D97: No
C98: does your city and/or county have incentive guidelines/thresholds that have been approved by the local, governing body that are specific to the site? | D98: No

Sheet Owner Site Section
C2: INSITE'S SITE AND COMMUNITY CLIENT READINESS PROGRAM
C3: InSite's Site Selection Data Template to Compile Site Specs
C4: Stand-Alone Site and/or Industrial Park Site(s): Referenced as "Site" in Document
C5: LEDO Input Data Template
C6: © 2022 InSite LLC: Confidential and Proprietary Property of InSite, LLC. The data template will remain in its original condition (formatting, spelling, etc.) as submitted to InSite.
C7: "Designed For Currently" Site Specs/Data Input Template
C8: Criteria | D8: Data/Response this Column Only | E8: Comments only in Gray Cells
E9: Blue cells do not require data entry.
C10: Name of Stand-Alone Site or Industrial Park Submission | D10: ='Start Instructions'!D8 -> Fort Union Industrial Park
C11: Is this Site Submission..... | D11: ='Start Instructions'!D9 -> An Industrial Park Site
C12: Largest, contiguous, developable acreage (CDA) of site submission. See "EX" worksheet tabs. | D12: ='Start Instructions'!D10 -> 460
C13: Submission street/physical address | D13: ='Start Instructions'!$D$11 -> 3574 N. Garner Lake Rd
C14: city | D14: ='Start Instructions'!$D$12 -> Gillette
C15: county | D15: ='Start Instructions'!$D$13 -> Campbell
C16: state | D16: ='Start Instructions'!$D$14 -> WY
C17: zip code | D17: ='Start Instructions'!$D$15 -> 82716
C18: GPS Coordinates | D18: ='Start Instructions'!$D$16 -> 44.354032988369234, -105.4208611010569
C19: OWNER(S) SECTION TO BE CONFIRMED WITH SIGNATURE(S) BELOW
C20: Primary Ownership Contact Information:
C21: full name | D21: Jim Ford
C22: company | D22: Greenbridge Holdings
C23: title | D23: Property Manager
C24: email address | D24: jim.ford@vcn.com
C25: cell phone number | D25: 307 680-3445
C26: Is the property for sale or lease? | D26: Sale
C27: Is (are) the owner(s) motivated to sell? | D27: Yes
C28: Documented price/acre or price/square foot. Indicate per acre or sq.ft. in comments. | D28: 60000 | E28: per acre
C29: Date available (if cell input does not function correctly, input date into comments) | D29: 1-1-2010
C30: Are there separately owned mineral rights with this site (oil, natural gas, coal, etc.) submission? If yes, describe types of minerals in comments. | D30: Yes
C31: if yes, who owns the mineral rights? | D31: Unknown | E31: Federal or State most likely
C32: if yes, provided a confirmation signature below from mineral rights ownership(s) of willingness to transfer or conveyance of those rights to the purchaser at no cost. | E32: Mineral rights are extreemly difficult to obtain in Wyoming
C33: if no mineral rights, provided a confirmation signature below from mineral rights ownership(s) stating there are no mineral rights associated with the property.
C35: Provider Confirmation of Accurate Information
C36: I confirm the above information is accurate as of …........................... | E36: (INSERT CURRENT DATE and TIME HERE)
C37: Insert Site Owner(s) Signature on Line Below:
C42: Insert Site Owner(s) Signature on Line Below Stating There are No Mineral Rights Associated with this Property:
C47: Insert Mineral Rights Owner(s) Signature on Line Below Stating Mineral Rights Transfer with Property Transaction:

Sheet Electric Section
C2: INSITE'S SITE AND COMMUNITY CLIENT READINESS PROGRAM
C3: InSite's Site Selection Data Template to Compile Site Specs
C4: Stand-Alone Site and/or Industrial Park Site(s): Referenced as "Site" in Document
C5: LEDO Input Data Template
C6: © 2022 InSite LLC: Confidential and Proprietary Property of InSite, LLC. The data template will remain in its original condition (formatting, spelling, etc.) as submitted to InSite.
C7: "Designed For Currently" Site Specs/Data Input Template
C8: Criteria | D8: Data/Response this Column Only | E8: Comments only in Gray Cells
E9: Blue cells do not require data entry.
C10: Name of Stand-Alone Site or Industrial Park Submission | D10: ='Start Instructions'!D8 -> Fort Union Industrial Park
C11: Is this Site Submission..... | D11: ='Start Instructions'!$D$9 -> An Industrial Park Site
C12: Largest, contiguous, developable acreage (CDA) of site submission. See "EX" worksheet tabs. | D12: ='Start Instructions'!$D$10 -> 460
C13: Submission street/physical address | D13: ='Start Instructions'!$D$11 -> 3574 N. Garner Lake Rd
C14: city | D14: ='Start Instructions'!$D$12 -> Gillette
C15: county | D15: ='Start Instructions'!$D$13 -> Campbell
C16: state | D16: ='Start Instructions'!$D$14 -> WY
C17: zip code | D17: ='Start Instructions'!$D$15 -> 82716
C18: GPS Coordinates | D18: ='Start Instructions'!$D$16 -> 44.354032988369234, -105.4208611010569
C19: ELECTRIC SYSTEM SECTION
C20: Electric lines are to the site boundaries | D20: Yes
C21: if no, distance in feet
C22: estimated cost to extend
C23: estimated time to extend (indicate days, months, years in comments)
C24: is funding currently available for extension
C25: Name of provider | D25: Powder River Energy Coporation
C26: name of utility contact representative providing information | D26: Taylor Johnson
C27: title of person responding | D27: System Engineer
C28: contact phone number | D28: 307-680-0096
C29: contact email address | D29: taylorj@precorp.coop
C30: Size of line(s) at the site boundaries | D30: 2/0, 4/0
C31: Existing distribution-level capacity at the site boundaries (must provide in MW) | D31: 4.5
C32: cost to expand to 10 MW | D32: $2 million
C33: estimated time to expand (indicate days, months, years in comments) | D33: 18 months
C34: is funding currently available for expansion | D34: Yes
C35: Response Optional: Is transmission-level service available at the site boundaries? | D35: No | E35: 69 kV transmission level available approximately 1 mile away
C36: Response Optional: Provide approximate transmission-level service capacity. Indicate in the comments section whether the number is in MW (preferred) or voltage. | D36: 0
C37: Distance in miles to substation serving the site boundaries | D37: 0.85
C38: Type of feed | D38: Dual Feed - Single Substation
C39: Redundant | D39: No
C40: Provided a map indicating service to the site boundaries. See the "EX" worksheet tabs. | D40: Yes
C41: Provided signature below that confirms each response within this section is exactly as written. | D41: Yes
C43: Provider Confirmation of Accurate Information
C45: I confirm the above information is accurate as of …...........................
C46: Utility capacities are subject to change over time.
C48: Insert Electric Provider Signature on Line Below:

Sheet Water Section
C2: INSITE'S SITE AND COMMUNITY CLIENT READINESS PROGRAM
C3: InSite's Site Selection Data Template to Compile Site Specs
C4: Stand-Alone Site and/or Industrial Park Site(s): Referenced as "Site" in Document
C5: LEDO Input Data Template
C6: © 2022 InSite LLC: Confidential and Proprietary Property of InSite, LLC. The data template will remain in its original condition (formatting, spelling, etc.) as submitted to InSite.
C7: "Designed For Currently" Site Specs/Data Input Template
C8: Criteria | D8: Data/Response this Column Only | E8: Comments only in Gray Cells
E9: Blue cells do not require data entry.
C10: Name of Stand-Alone Site or Industrial Park Submission | D10: ='Start Instructions'!D8 -> Fort Union Industrial Park
C11: Is this Site Submission..... | D11: ='Start Instructions'!$D$9 -> An Industrial Park Site
C12: Largest, contiguous, developable acreage (CDA) of site submission. See "EX" worksheet tabs. | D12: ='Start Instructions'!$D$10 -> 460
C13: Submission street/physical address | D13: ='Start Instructions'!$D$11 -> 3574 N. Garner Lake Rd
C14: city | D14: ='Start Instructions'!$D$12 -> Gillette
C15: county | D15: ='Start Instructions'!$D$13 -> Campbell
C16: state | D16: ='Start Instructions'!$D$14 -> WY
C17: zip code | D17: ='Start Instructions'!$D$15 -> 82716
C18: GPS Coordinates | D18: ='Start Instructions'!$D$16 -> 44.354032988369234, -105.4208611010569
C19: WATER SYSTEM SECTION
C20: Water line is to the site boundaries | D20: No | E20: Entire site is well fed
C21: if no, distance in feet | E21: well is required
C22: estimated cost to extend
C23: estimated time to extend (indicate days, months, years in comments)
C24: is funding currently available for extension
C25: Name of provider
C26: name of utility contact representative providing information
C27: title of person responding
C28: contact phone number
C29: contact email address
C30: Size of line (inches) at the site boundaries
C31: Existing total capacity in GPD/MGD (indicate which in comments) serving the site (not plant capacity)
C32: Existing total excess capacity in GPD/MGD (indicate which in comments) serving the site (not plant capacity)
C33: if excess capacity to the site is below 200,000 gpd, cost to expand in 100,000 gpd increments
C34: estimated time to expand (indicate days, months, years in comments)
C35: is funding currently available for expansion
C36: Provided a map indicating service to the site boundaries. See the "EX" worksheet tabs.
C37: Provided signature below that confirms each response within this section is exactly as written.
C39: Provider Confirmation of Accurate Information
C41: I confirm the above information is accurate as of …........................... | E41: (INSERT CURRENT DATE and TIME HERE)
C42: Utility capacities are subject to change over time.
C44: Insert Water Provider Signature on Line Below:

Sheet Sewer Section
C2: INSITE'S SITE AND COMMUNITY CLIENT READINESS PROGRAM
C3: InSite's Site Selection Data Template to Compile Site Specs
C4: Stand-Alone Site and/or Industrial Park Site(s): Referenced as "Site" in Document
C5: LEDO Input Data Template
C6: © 2022 InSite LLC: Confidential and Proprietary Property of InSite, LLC. The data template will remain in its original condition (formatting, spelling, etc.) as submitted to InSite.
C7: "Designed For Currently" Site Specs/Data Input Template
C8: Criteria | D8: Data/Response this Column Only | E8: Comments only in Gray Cells
E9: Blue cells do not require data entry.
C10: Name of Stand-Alone Site or Industrial Park Submission | D10: ='Start Instructions'!D8 -> Fort Union Industrial Park
C11: Is this Site Submission..... | D11: ='Start Instructions'!$D$9 -> An Industrial Park Site
C12: Largest, contiguous, developable acreage (CDA) of site submission. See "EX" worksheet tabs. | D12: ='Start Instructions'!$D$10 -> 460
C13: Submission street/physical address | D13: ='Start Instructions'!$D$11 -> 3574 N. Garner Lake Rd
C14: city | D14: ='Start Instructions'!$D$12 -> Gillette
C15: county | D15: ='Start Instructions'!$D$13 -> Campbell
C16: state | D16: ='Start Instructions'!$D$14 -> WY
C17: zip code | D17: ='Start Instructions'!$D$15 -> 82716
C18: GPS Coordinates | D18: ='Start Instructions'!$D$16 -> 44.354032988369234, -105.4208611010569
C19: SEWER SYSTEM SECTION
C20: Sewer line to the site boundaries | D20: No | E20: All sites are on septic systems
C21: if no, distance in feet
C22: estimated cost to extend
C23: estimated time to extend (indicate days, months, years in comments)
C24: is funding currently available for extension
C25: Name of provider
C26: name of utility contact representative providing information
C27: title of person responding
C28: contact phone number
C29: contact email address
C30: Size of line (inches) at the site boundaries
C31: Existing total capacity in GPD/MGD (indicate which in comments) serving the site (not plant capacity)
C32: Existing total excess capacity in GPD/MGD (indicate which in comments) serving the site (not plant capacity)
C33: if excess capacity to the site is below 200,000 gpd, cost to expand in 100,000 gpd increments
C34: estimated time to expand (indicate days, months, years in comments)
C35: is funding currently available for expansion
C36: Provided a map indicating service to the site boundaries. See the "EX" worksheet tabs.
C37: Provided signature below that confirms each response within this section is exactly as written.
C38: if no, how far from site (indicate distance in feet or miles in comments) | D38: 3 miles
C39: List all rail providers serving the property, indicating in parentheses behind each if it is a Class I or Class II provider
C40: name of utility contact representative providing information
C41: title of person responding
C42: contact phone number
C43: contact email address
C44: Is there a rail spur to the site boundaries | D44: No
C45: Are there multiple rail providers serving the site
C46: is the park served by a Class I or Class II provider
C47: if Class I, are there multiple Class I providers serving the site
C48: if Class II, does it connect to multiple Class I providers
C49: Indicate number of trains capable of serving the park or site per week
C50: Indicate number of trains currently serving the park or site per week
C51: Distance to nearest rail storage yard (miles)
C52: Rail carrier days of service per year
C53: Provided a letter in the identical format shown in submission workbook page "Example Rail Letter" from the rail provider(s), as a separate attachment and with this submission, that communicates in writing each response within this section exactly as written and responded. Copy and paste this completed section on provider company letterhead and have signed by utility company decision-maker. | D53: Not Rail-Served
C55: Provider Confirmation of Accurate Information
C57: I confirm the above information is accurate as of …........................... | E57: (INSERT CURRENT DATE and TIME HERE)
C58: Utility capacities are subject to change over time.
C60: Insert Sewer Provider Signature on Line Below:

Sheet Natural Gas Section
C2: INSITE'S SITE AND COMMUNITY CLIENT READINESS PROGRAM
C3: InSite's Site Selection Data Template to Compile Site Specs
C4: Stand-Alone Site and/or Industrial Park Site(s): Referenced as "Site" in Document
C5: LEDO Input Data Template
C6: © 2022 InSite LLC: Confidential and Proprietary Property of InSite, LLC. The data template will remain in its original condition (formatting, spelling, etc.) as submitted to InSite.
C7: "Designed For Currently" Site Specs/Data Input Template
C8: Criteria | D8: Data/Response this Column Only | E8: Comments only in Gray Cells
E9: Blue cells do not require data entry.
C10: Name of Stand-Alone Site or Industrial Park Submission | D10: ='Start Instructions'!D8 -> Fort Union Industrial Park
C11: Is this Site Submission..... | D11: ='Start Instructions'!$D$9 -> An Industrial Park Site
C12: Largest, contiguous, developable acreage (CDA) of site submission. See "EX" worksheet tabs. | D12: ='Start Instructions'!$D$10 -> 460
C13: Submission street/physical address | D13: ='Start Instructions'!$D$11 -> 3574 N. Garner Lake Rd
C14: city | D14: ='Start Instructions'!$D$12 -> Gillette
C15: county | D15: ='Start Instructions'!$D$13 -> Campbell
C16: state | D16: ='Start Instructions'!$D$14 -> WY
C17: zip code | D17: ='Start Instructions'!$D$15 -> 82716
C18: GPS Coordinates | D18: ='Start Instructions'!$D$16 -> 44.354032988369234, -105.4208611010569
C19: NATURAL GAS SECTION
C20: Natural gas line to the site boundaries
C21: if no, distance in feet
C22: estimated cost to extend
C23: estimated time to extend (indicate days, months, years in comments)
C24: is funding currently available for extension
C25: Name of provider
C26: name of utility contact representative providing information
C27: title of person responding
C28: contact phone number
C29: contact email address
C30: Size of line at the site boundaries
C31: Current available PSI (#) at the site boundaries
C32: Existing distribution-level capacity at the site boundaries (must provide in MCF/Hour)
C33: if excess capacity to the site is below 14 MCF/HR, cost to expand in 14 MCF/HR increments
C34: estimated time to expand (indicate days, months, years in comments)
C35: is funding currently available for expansion
C36: Existing transmission-level service available at the site boundaries. If yes, must indicate in MCF/HOUR in comments.
C37: Provided a map indicating service to the site boundaries. See the "EX" worksheet tabs.
C38: Provided signature below that confirms each response within this section is exactly as written.
C40: Provider Confirmation of Accurate Information
C42: I confirm the above information is accurate as of …........................... | E42: (INSERT CURRENT DATE and TIME HERE)
C43: Utility capacities are subject to change over time.
C45: Insert Natural Gas Provider Signature on Line Below:

Sheet Fiber Section
C2: INSITE'S SITE AND COMMUNITY CLIENT READINESS PROGRAM
C3: InSite's Site Selection Data Template to Compile Site Specs
C4: Stand-Alone Site and/or Industrial Park Site(s): Referenced as "Site" in Document
C5: LEDO Input Data Template
C6: © 2022 InSite LLC: Confidential and Proprietary Property of InSite, LLC. The data template will remain in its original condition (formatting, spelling, etc.) as submitted to InSite.
C7: "Designed For Currently" Site Specs/Data Input Template
C8: Criteria | D8: Data/Response this Column Only | E8: Comments only in Gray Cells
E9: Blue cells do not require data entry.
C10: Name of Stand-Alone Site or Industrial Park Submission | D10: ='Start Instructions'!D8 -> Fort Union Industrial Park
C11: Is this Site Submission..... | D11: ='Start Instructions'!$D$9 -> An Industrial Park Site
C12: Largest, contiguous, developable acreage (CDA) of site submission. See "EX" worksheet tabs. | D12: ='Start Instructions'!$D$10 -> 460
C13: Submission street/physical address | D13: ='Start Instructions'!$D$11 -> 3574 N. Garner Lake Rd
C14: city | D14: ='Start Instructions'!$D$12 -> Gillette
C15: county | D15: ='Start Instructions'!$D$13 -> Campbell
C16: state | D16: ='Start Instructions'!$D$14 -> WY
C17: zip code | D17: ='Start Instructions'!$D$15 -> 82716
C18: GPS Coordinates | D18: ='Start Instructions'!$D$16 -> 44.354032988369234, -105.4208611010569
C19: FIBER SECTION
C20: Fiber to the site boundaries | D20: No
C21: if no, distance in feet | D21: 22838 | E21: Feet
C22: estimated cost to extend | D22: 315475
C23: estimated time to extend (indicate days, months, years in comments) | D23: 120 | E23: 120 days
C24: is funding currently available for extension | D24: Yes | E24: Amortization available
C25: Name of provider | D25: Visionary Broadband
C26: name of utility contact representative providing information | D26: Brian Worthen
C27: title of person responding | D27: Business Development
C28: contact phone number | D28: 307.685.5555
C29: contact email address | D29: bworthen@visionarybroadband.com
C30: Describe fiber service capacity (amount/size) to the site boundaries | D30: 288 count fiber to Sout of property boundary, in the format of a ring. Dark, active and XGS-PON available.
C31: Provided a map indicating service to the site boundaries. See the "EX" worksheet tabs. | D31: Yes
C32: Provided signature below that confirms each response within this section is exactly as written.
C34: Provider Confirmation of Accurate Information
C36: I confirm the above information is accurate as of …........................... | E36: Jan 19th, 2023 12:26 pm
C37: Utility capacities are subject to change over time.
C39: Insert Fiber Provider Signature on Line Below:
C40: Brian R Worthen, Visionary Broadband

Sheet Rail Section
C2: INSITE'S SITE AND COMMUNITY CLIENT READINESS PROGRAM
C3: InSite's Site Selection Data Template to Compile Site Specs
C4: Stand-Alone Site and/or Industrial Park Site(s): Referenced as "Site" in Document
C5: LEDO Input Data Template
C6: © 2022 InSite LLC: Confidential and Proprietary Property of InSite, LLC. The data template will remain in its original condition (formatting, spelling, etc.) as submitted to InSite.
C7: "Designed For Currently" Site Specs/Data Input Template
C8: Criteria | D8: Data/Response this Column Only | E8: Comments only in Gray Cells
E9: Blue cells do not require data entry.
C10: Name of Stand-Alone Site or Industrial Park Submission | D10: ='Start Instructions'!D8 -> Fort Union Industrial Park
C11: Is this Site Submission..... | D11: ='Start Instructions'!$D$9 -> An Industrial Park Site
C12: Largest, contiguous, developable acreage (CDA) of site submission. See "EX" worksheet tabs. | D12: ='Start Instructions'!$D$10 -> 460
C13: Submission street/physical address | D13: ='Start Instructions'!$D$11 -> 3574 N. Garner Lake Rd
C14: city | D14: ='Start Instructions'!$D$12 -> Gillette
C15: county | D15: ='Start Instructions'!$D$13 -> Campbell
C16: state | D16: ='Start Instructions'!$D$14 -> WY
C17: zip code | D17: ='Start Instructions'!$D$15 -> 82716
C18: GPS Coordinates | D18: ='Start Instructions'!$D$16 -> 44.354032988369234, -105.4208611010569
C19: RAIL SECTION
C20: Rail service to the site boundaries | D20: Yes
C21: if no rail service, how far from site/park boundaries (indicate distance in feet or miles in comments)?
C22: is it feasible to extend
C23: estimated cost to extend
C24: estimated time to extend (indicate days, months, years in comments)
C25: Existing rail spur to the site boundary | D25: Yes
C26: if yes, attached conceptual of rail spur into the site
C27: if no, can a spur be built to the site?
C28: estimated cost to extend
C29: estimated time to expand (indicate days, months, years in comments)
C30: List all rail providers serving the site/park, indicating in parentheses after each if it is a Class I or Class II provider | D30: BNSF
C31: name of utility contact representative providing information
C32: title of person responding
C33: contact phone number
C34: contact email address
C35: Are there multiple rail providers serving the site/park boundaries? | D35: No
C36: is the site/park served by a Class I or Class II provider? | D36: Class I
C37: if Class I, are there multiple Class I providers serving the site/park? | D37: No
C38: if Class II, does it connect to multiple Class I providers?
C39: Indicate number of trains capable of serving the site/park per week
C40: Indicate number of trains currently serving the site/park per week
C41: Distance to nearest rail storage yard (miles)
C42: Rail carrier days of service per year
C43: Provided a map indicating where service is to the site boundaries.
C44: Provided signature below that confirms each response within this section is exactly as written.
C46: Provider Confirmation of Accurate Information (if applicable)
C48: I confirm the above information is accurate as of …........................... | E48: (INSERT CURRENT DATE and TIME HERE)
C51: Insert Rail Provider Signature on Line Below:

Sheet Airport Section
C2: INSITE'S SITE AND COMMUNITY CLIENT READINESS PROGRAM
C3: InSite's Site Selection Data Template to Compile Site Specs
C4: Stand-Alone Site and/or Industrial Park Site(s): Referenced as "Site" in Document
C5: LEDO Input Data Template
C6: © 2022 InSite LLC: Confidential and Proprietary Property of InSite, LLC. The data template will remain in its original condition (formatting, spelling, etc.) as submitted to InSite.
C7: "Designed For Currently" Site Specs/Data Input Template
C8: Criteria | D8: Data/Response this Column Only | E8: Comments only in Gray Cells
E9: Blue cells do not require data entry.
C10: Name of Stand-Alone Site or Industrial Park Submission | D10: ='Start Instructions'!D8 -> Fort Union Industrial Park
C11: Is this Site Submission..... | D11: ='Start Instructions'!$D$9 -> An Industrial Park Site
C12: Largest, contiguous, developable acreage (CDA) of site submission. See "EX" worksheet tabs. | D12: ='Start Instructions'!$D$10 -> 460
C13: Submission street/physical address | D13: ='Start Instructions'!$D$11 -> 3574 N. Garner Lake Rd
C14: city | D14: ='Start Instructions'!$D$12 -> Gillette
C15: county | D15: ='Start Instructions'!$D$13 -> Campbell
C16: state | D16: ='Start Instructions'!$D$14 -> WY
C17: zip code | D17: ='Start Instructions'!$D$15 -> 82716
C18: GPS Coordinates | D18: ='Start Instructions'!$D$16 -> 44.354032988369234, -105.4208611010569
C19: AIRPARK SECTION
C20: Is your site(s) part of an airport/airpark | D20: No
C21: Name of airport | E21: Northeast Wyoming Regional Airport
C22: General Aviation Airport | E22: Yes
C23: Commercial Airport | E23: Yes
C24: Number of runways (put respective lengths in comments) | E24: RWY 16/34 7501' X 150' RWY 3/21 5803' X 75'
C25: FBO | E25: Flightline LFS
C26: Fuel availability | E26: 24k gallons JET A 12k gallons 100 LL
C27: Number of flights | E27: 13 Weekly
C28: Number of direct flights | E28: 13 Weekly
C29: Number of domiciled aircraft | E29: 53
C30: Maintenance and repair services available | E30: Yes
C31: Number of available hangers | E31: 24 County Owned none available at this time
C32: Number of hangers with runway access | E32: 24
C33: Is the property in the environs? | E33: Yes
C34: Conference facilities available | E34: Yes
C35: Flight school onsite (if no, put distance to closest one in comments) | E35: Yes
C36: List additional amenities
C37: Provided map of property (with environs overlay if applicable)
C38: Provided signature below that confirms each response within this section is exactly as written.
C40: Airport Authority Confirmation of Accurate Information (if applicable)
C42: I confirm the above information is accurate as of …........................... | E42: 01/10/2023 0730
C45: Insert Airport Authority Signature on Line Below:
C47: Todd Chatfield C.M.

Sheet Owner LEDO Due Diligence Sect
C2: INSITE'S SITE AND COMMUNITY CLIENT READINESS PROGRAM
C3: InSite's Site Selection Data Template to Compile Site Specs
C4: Stand-Alone Site and/or Industrial Park Site(s): Referenced as "Site" in Document
C5: LEDO Input Data Template
C6: © 2022 InSite LLC: Confidential and Proprietary Property of InSite, LLC. The data template will remain in its original condition (formatting, spelling, etc.) as submitted to InSite.
C7: "Designed For Currently" Site Specs/Data Input Template
C8: Criteria | D8: Data/Response this Column Only | E8: Comments only in Gray Cells
E9: Blue cells do not require data entry.
C10: Name of Stand-Alone Site or Industrial Park Submission | D10: ='Start Instructions'!D8 -> Fort Union Industrial Park
C11: Is this Site Submission..... | D11: ='Start Instructions'!$D$9 -> An Industrial Park Site
C12: Largest, contiguous, developable acreage (CDA) of site submission. See "EX" worksheet tabs. | D12: ='Start Instructions'!$D$10 -> 460
C13: Submission street/physical address | D13: ='Start Instructions'!$D$11 -> 3574 N. Garner Lake Rd
C14: city | D14: ='Start Instructions'!$D$12 -> Gillette
C15: county | D15: ='Start Instructions'!$D$13 -> Campbell
C16: state | D16: ='Start Instructions'!$D$14 -> WY
C17: zip code | D17: ='Start Instructions'!$D$15 -> 82716
C18: GPS Coordinates | D18: ='Start Instructions'!$D$16 -> 44.354032988369234, -105.4208611010569
C19: Site Due Diligence Questions (Input from Owner and LEDO).
C20: Any Due Diligence Dated 10 years or Older, Must Be Updated.
C21: Do Not Provide any Studies! Provide what is asked for below and per example as applicable.
C22: Completed Phase I ESA on the site submission | D22: No
C23: if yes, date of the Phase I ESA (if cell input does not function correctly, input date into comments)
C24: do the results of the Phase I ESA require further action?
C25: do you (owner and LEDO) have an electronic copy of the study on file? If no, get one for your files. Do not provide full study.
C26: Link to Content for Engineering Firm Letter. Any other format will be rejected.
C27: provided summary letter from the engineering firm in the identical format shown in the example, that is no more than 10 years old and is no more than one page, stating specifically and exactly that the site is clear; and if not, why and what has to be done next.
C28: if a Phase I ESA has not been completed, are you willing to pursue this effort? | D28: Yes
C30: Completed Phase II ESA on the entire site submission | D30: No
C31: if yes, date of the Phase II ESA (if cell input does not function correctly, input date into comments)
C32: do you (owner and LEDO) have an electronic copy of the study on file? If no, get one for your files. Do not provide full study.
C33: provided summary letter from the engineering firm in the identical format shown in the example, that is no more than 10 years old and is no more than one page, stating specifically and exactly that the site is clear; and if not, why and what has to be done next.
C34: if a Phase II ESA has not been completed, are you willing to pursue this effort? | D34: Yes
C36: Completed Geotechnical Study on the entire site submission | D36: No
C37: if yes, date of the Geotechnical Study (if cell input does not function correctly, input date into comments)
C38: do you (owner and LEDO) have an electronic copy of the study on file? If no, get one for your files. Do not provide full study.
C39: Link to Content for Engineering Firm Letter. Any other format will be rejected.
C40: provided summary letter from the engineering firm in the identical format shown in the example, that is no more than 10 years old and is no more than one page, stating specifically and exactly that the site is clear; and if not, why and what has to be done next.
C41: if a Geotechnical Study has not been completed, are you willing to pursue this effort? | D41: Yes
C43: Completed Wetlands Delineation Study on the entire site submission | D43: No
C44: if yes, date of the Wetland Delineation Study (if cell input does not function correctly, input date into comments)
C45: do you (owner and LEDO) have an electronic copy of the study on file? If no, get one for your files. Do not provide full study.
C46: Link to Content for Engineering Firm Letter. Any other format will be rejected.
C47: provided summary letter from the engineering firm in the identical format shown in the example, that is no more than 10 years old and is no more than one page, stating specifically and exactly that the site is clear and if not, why and what has to be done next.
C48: included wetlands delineation map with park/site boundaries as a separate attachment and with this submission
C49: Link to Example Final JD Letter. Preliminary JD's are not accepted.
C50: provided an APPROVED, FINAL (not preliminary) Jurisdictional Determination Letter from the Corps of Engineers dated within the last 10 years as a separate attachment and with this submission.
C51: if a Wetlands Delineation Study has not been completed, are you willing to pursue this effort? | D51: Yes
C53: Completed Cultural Resource Study on the entire site submission (not a literature review) | D53: No
C54: if yes, date of the Cultural Resource Study (if cell input does not function correctly, input date into comments)
C55: do you (owner and LEDO) have an electronic copy of the study on file? If no, get one for your files. Do not provide full study.
C56: Link to Content for Engineering Firm Letter. Any other format will be rejected.
C57: provided summary letter from the engineering firm in the identical format shown in the example, that is no more than 10 years old and is no more than one page, stating specifically and exactly that the site is clear and if not, why and what has to be done next.
C58: included historical site delineation map with park/site boundaries as a separate attachment and with this submission
C59: Link to Example SHPO Letter
C60: provided a concurrence letter from SHPO - Ohio History Connection (State Historic and Preservation Office) dated within the last 10 years as a separate attachment and with this submission.
C61: if a Phase I Cultural Resources Study has not been completed, are you willing to pursue this effort? | D61: Yes
C63: Completed Endangered Species Study on the entire site submission | D63: No
C64: if yes, date of the Endangered Species Study (if cell input does not function correctly, input date into comments)
C65: do you (owner and LEDO) have an electronic copy of the study on file. If no, get one for your files? Do not provide full study.
C66: Link to Content for Engineering Firm Letter. Any other format will be rejected.
C67: provided summary letter from the engineering firm in the identical format shown in the example, that is no more than 10 years old and is no more than one page, stating specifically and exactly that the site is clear and if not, why and what has to be done next.
C68: Link to Example USFWS Letter
C69: provided a letter from USFWS (U.S. Fish and Wildlife Services) as a separate attachment and with this submission, confirming no findings or findings and path forward for the site dated within the last 10 years.
C70: if an Endangered Species Study has not been completed, are you willing to pursue this effort? | D70: Yes

Sheet Fort Union Site

Sheet "EX" Stand-Alone Site CDA
C2: INSITE'S SITE AND COMMUNITY CLIENT READINESS PROGRAM
C3: InSite's Site Selection Data Template to Compile Site Specs
C4: Stand-Alone Site and/or Industrial Park Site(s): Referenced as "Site" in Document
C5: LEDO Input Data Template
C6: © 2022 InSite LLC: Confidential and Proprietary Property of InSite, LLC. The data template will remain in its original condition (formatting, spelling, etc.) as submitted to InSite.

Sheet "EX" Ind Park Map CDA
C2: INSITE'S SITE AND COMMUNITY CLIENT READINESS PROGRAM
C3: InSite's Site Selection Data Template to Compile Site Specs
C4: Stand-Alone Site and/or Industrial Park Site(s): Referenced as "Site" in Document
C5: LEDO Input Data Template
C6: © 2022 InSite LLC: Confidential and Proprietary Property of InSite, LLC. The data template will remain in its original condition (formatting, spelling, etc.) as submitted to InSite.

Sheet InSite Section Subm Checklist
C2: INSITE'S SITE AND COMMUNITY CLIENT READINESS PROGRAM
C3: InSite's Site Selection Data Template to Compile Site Specs
C4: Stand-Alone Site and/or Industrial Park Site(s): Referenced as "Site" in Document
C5: LEDO Input Data Template
C6: © 2022 InSite LLC: Confidential and Proprietary Property of InSite, LLC. The data template will remain in its original condition (formatting, spelling, etc.) as submitted to InSite.
C7: "Designed For Currently" Site Specs/Data Input Template
C8: Criteria | D8: Data/Response this Column Only | E8: Comments only in Gray Cells
E9: Blue cells do not require data entry.
C10: Name of Stand-Alone Site or Industrial Park Submission | D10: ='Start Instructions'!D8 -> Fort Union Industrial Park
C11: Is this Site Submission..... | D11: ='Start Instructions'!$D$9 -> An Industrial Park Site
C12: Largest, contiguous, developable acreage (CDA) of site submission. See "EX" worksheet tabs. | D12: ='Start Instructions'!$D$10 -> 460
C13: Submission street/physical address | D13: ='Start Instructions'!$D$11 -> 3574 N. Garner Lake Rd
C14: city | D14: ='Start Instructions'!$D$12 -> Gillette
C15: county | D15: ='Start Instructions'!$D$13 -> Campbell
C16: state | D16: ='Start Instructions'!$D$14 -> WY
C17: zip code | D17: ='Start Instructions'!$D$15 -> 82716
C18: GPS Coordinates | D18: ='Start Instructions'!$D$16 -> 44.354032988369234, -105.4208611010569
C19: TO BE USED BY LEDO AS SUBMISSION CHECKLIST
C20: INCLUDE STAND-ALONE SITE and/or INDUSTRIAL PARK AND SITE BOUNDARIES and LEGEND ON ALL MAPS
C21: Submitted the following with data template: INSITE USE ONLY
C22: Simple, stand-alone site layout with maximum, contiguous, developable acreage, and include the maximum square footage of a building footprint on the site's developable acreage. Or a simple industrial park layout with site(s) shown per maximum, contiguous, developable acreage as site boundaries and lot lines, and include the maximum square footage of a building footprint on each site's developable acreage?
C23: FEMA flood plain map. Include site boundaries.
C24: Ownership signature provided in this template
C25: Mineral Rights ownership signature provided in this template
C26: One utility map (include site boundaries) showing where water, sewer, electric, natural gas and fiber lines connect to the site boundaries
C27: Electric provider signature provided in this template
C28: Water provider signature provided in this template
C29: Sewer provider signature provided in this template
C30: Natural Gas provider signature provided in this template
C31: Fiber provider signature provided in this template
C32: Rail provider signature provided in this template (if applicable)
C33: Phase I completed
C34: engineer's summary letter exactly per template
C35: if no, willingness to complete
C36: Phase II completed
C37: engineer's summary letter exactly per template
C38: Geotechnical study completed
C39: engineer's summary letter exactly per template
C40: if no, willingness to complete
C41: Wetlands Delineation study completed
C42: engineer's summary letter exactly per template
C43: delineation map
C44: final APPROVED JD Letter
C45: if no, willingness to complete
C46: Phase I Cultural Resources study completed
C47: engineer's summary letter exactly per template
C48: findings map
C49: SHPO Letter
C50: if no, willingness to complete
C51: Endangered Species study completed
C52: engineer's summary letter exactly per template
C53: USFW Letter
C54: if no, willingness to complete
C55: Aerial photograph. Label surrounding uses and site/park boundaries.
C56: USGS topographic map. Include site boundaries.
C57: Map of local, state highway/interstate infrastructure relative to the site. Include site boundaries.
C58: Map of 500-mile radius (in 100-mile increments/rings) from the site to include state highway/interstate infrastructure with major cities labeled.
C59: Property survey or plat of site
C60: Tax map of submission of site boundaries.
